fUSD/lending_fUSD_20250331
["ID","MTS","AMOUNT","RATE_DAILY","PERIOD"]
[356934828,1743439832159,-155.45,0.00026849,2]
[356934829,1743439832169,-152.73,0.00026849,2]
[356934830,1743439832179,-300.0,0.00029788,2]
[356934831,1743439832193,-386.278,0.0003346,35]
[356934832,1743439832205,-19622.76987088,0.0003348,2]
[356934833,1743439832232,-700.90404576,0.0003348,2]
[356934834,1743439832342,-853.23238,0.0003348,2]
[356934835,1743439832354,-3902.99477282,0.0003348,2]
[356934836,1743439832363,-150.0,0.00033543,2]
[356934837,1743439832373,-949.32,0.00033596,2]
[356934838,1743439832383,-1000.0,0.00033597,2]
[356934839,1743439832393,-169.48,0.00033652,120]
[356934840,1743439832402,-2664.27073332,0.00033794,2]
[356934841,1743439832414,-2335.72926568,0.00033794,2]
[356934842,1743439832423,-154.97487,0.00033814,53]
[356934843,1743439832433,-200.0,0.00034126,2]
[356934844,1743439832443,-151.00000001,0.00034155,2]
[356934845,1743439832452,-536.0,0.00034175,2]
[356934846,1743439832461,-46345.63399124,0.00034176,2]
[356934847,1743439832471,-22656.04074861,0.00034186,2]
[356934854,1743439838034,-908.45,0.00034186,2]
[356934855,1743439838048,-335.50925139,0.00034186,2]
[356934856,1743439838058,-184.51,0.00034245,120]
[356934857,1743439838069,-250.0,0.00034254,2]
[356934858,1743439838079,-474.47,0.00034417,2]
[356934859,1743439838089,-450.48,0.00034721,2]
[356934860,1743439838100,-450.48,0.0003473,2]
[356934861,1743439838111,-450.48,0.00034739,2]
[356934862,1743439838120,-450.48,0.00034748,2]
[356934863,1743439838130,-450.48,0.00034758,2]
[356934864,1743439838140,-241.86074862,0.00034767,2]
[356934865,1743439838155,-208.61925138,0.00034767,2]
[356934866,1743439838166,-265.5753465,0.00034776,2]
[356934867,1743439838179,-184.9046535,0.00034776,2]
[356934868,1743439838190,-450.48,0.00034785,2]
[356934869,1743439838200,-450.48,0.00034794,2]
[356934870,1743439838210,-152.23881468,0.00034803,2]
[356934871,1743439838222,-298.24118532,0.00034803,2]
[356934872,1743439838232,-450.48,0.00034812,2]
[356934873,1743439838241,-450.48,0.00034822,2]
[356934874,1743439838251,-450.48,0.00034831,2]
[356934875,1743439838261,-450.48,0.0003484,2]
[356934876,1743439838272,-450.48,0.00034849,2]
[356934877,1743439838283,-450.48,0.00034858,2]
[356934878,1743439838293,-450.48,0.00034867,2]
[356934879,1743439838303,-119.81881468,0.00034876,2]
[356934880,1743439838316,-330.66118532,0.00034876,2]
[356934881,1743439838327,-450.48,0.00034886,2]
[356934882,1743439838337,-450.48,0.00034895,2]
[356934883,1743439838347,-407.0296043,0.00035,40]
[356934885,1743439838358,-15694.125,0.00035,40]
[356934886,1743439838370,-517.07491599,0.00035,40]
[356935073,1743439840290,-1065.70713522,0.00035,40]
[356935079,1743439840343,-31185.30074693,0.00035,40]
[356935086,1743439840396,-331.162832,0.00035,40]
[356935092,1743439840451,-460.01767915,0.00035,40]
[356935104,1743439840558,-303.7425531,0.00035,40]
[356935106,1743439840570,-1628.162577,0.00035,40]
[356935111,1743439840611,-686.12673637,0.00035,40]
[356935113,1743439840623,-2240.91721747,0.00035,40]
[356935116,1743439840635,-282.0,0.00035,40]
[356935270,1743439844351,-4908.15603795,0.00035,40]
[356935271,1743439846067,-733.38963546,0.00035,40]
[356935272,1743439846330,-1087.64647451,0.00035,40]
[356935273,1743439846342,-459.99500002,0.00035,40]
[356935274,1743439846354,-1682.983785,0.00035,40]
[356935295,1743440968121,-155.12,0.00026849,2]
[356935296,1743440968141,-150.0,0.00027566,2]
[356935297,1743440968161,-150.0,0.00029534,2]
[356935298,1743440968181,-150.0,0.00030361,2]
[356935299,1743440968202,-309.022,0.00034895,40]
[356935300,1743440968224,-154.97488,0.00034895,55]
[356935301,1743440968244,-3450.42752,0.00035,40]
[356935305,1743441032222,-5346.39530734,0.00035,40]
[356935306,1743441032326,-942.31424894,0.00035,40]
[356935307,1743441032436,-535.3884398,0.00035,40]
[356935329,1743441038167,-1836.0,0.00035,40]
[356935330,1743441038179,-858.0,0.00035,40]
[356935331,1743441038222,-23525.04819257,0.00035,40]
[356935332,1743441038232,-711.0,0.00035,4]
[356935333,1743441038241,-150.0,0.00035,2]
[356935334,1743441038251,-150.0,0.00037504,2]
[356935335,1743441038261,-1000.0,0.00037796,2]
[356935336,1743441038271,-150.0,0.000385,2]
[356935337,1743441038281,-151.00000001,0.00039856,2]
[356935338,1743441038292,-1174.72356368,0.0003987,2]
[356935339,1743441038302,-8964.3906084,0.0003988,2]
[356935340,1743441038313,-552.6000004,0.0003988,2]
[356935341,1743441038382,-1360.21613656,0.0003988,2]
[356935342,1743441038436,-837.36800416,0.0003988,2]
[356935348,1743441040377,-590.63489098,0.0003988,2]
[356935349,1743441040430,-35278.33096163,0.0003988,2]
[356935350,1743441040442,-52416.45939787,0.0003988,2]
[356935351,1743441040455,-8902.9262366,0.000399,7]
[356935352,1743441040465,-824.46292442,0.000399,15]
[356935353,1743441040475,-2359.68266696,0.0004,3]
[356935354,1743441040484,-74515.88033681,0.0004,30]
[356935355,1743441040494,-10053.45626746,0.0004,30]
[356935356,1743441040504,-332.31,0.00040717,2]
[356935357,1743441040514,-824.46292435,0.00041544,15]
[356935358,1743441040523,-169.48,0.00041604,120]
[356935359,1743441040533,-184.51,0.00041749,120]
[356935360,1743441040543,-250.0,0.00041762,2]
[356935361,1743441040554,-1000.0,0.00041996,2]
[356935362,1743441040563,-1200.0,0.00042,7]
[356935363,1743441040573,-1072.04,0.00042763,120]
[356935364,1743441040583,-332.31,0.0004298,2]
[356935365,1743441040593,-824.46292435,0.00043188,15]
[356935366,1743441040603,-23900.0,0.00043374,2]
[356935367,1743441040613,-824.46292435,0.00044831,15]
[356935368,1743441040622,-3734.72692509,0.00045,30]
[356935369,1743441040632,-152.73,0.00045205,2]
[356935370,1743441040642,-155.12,0.00045205,2]
[356935371,1743441040652,-332.31,0.00045244,2]
[356935372,1743441040662,-1000.0,0.00046196,2]
[356935373,1743441040672,-298.59866056,0.00046247,2]
[356935374,1743441040682,-150.0,0.000463,2]
[356935375,1743441040691,-824.46292435,0.00046475,15]
[356935376,1743441040701,-199999.999999,0.000465,50]
[356935377,1743441040711,-6491.88591158,0.00046611,15]
[356935378,1743441040722,-356.58360458,0.00046711,18]
[356935379,1743441040732,-1192.65984853,0.0004723,120]
[356935380,1743441040742,-332.31,0.00047508,2]
[356935381,1743441040752,-6491.88591151,0.00047509,15]
[356935382,1743441040762,-1200.0,0.000478,120]
[356935383,1743441040771,-824.46292435,0.00048119,15]
[356935384,1743441040780,-6491.88591151,0.00048407,15]
[356935385,1743441040790,-321.0,0.000486,7]
[356935386,1743441040800,-184.51,0.00048707,120]
[356935387,1743441040810,-160.11392448,0.000489,120]
[356935388,1743441040819,-3426.71326614,0.000489,2]
[356935389,1743441040829,-169.42859159,0.000489,34]
[356935390,1743441040839,-400.43471315,0.000489,2]
[356935391,1743441040849,-413.03073392,0.000489,2]
[356935392,1743441040859,-500.0,0.00048973,10]
[356935394,1743441040869,-151.26,0.0004899,120]
[356935395,1743441040879,-151.26,0.0004899,120]
[356935396,1743441040889,-151.26,0.0004899,120]
[356935397,1743441040898,-151.26,0.0004899,120]
[356935398,1743441040908,-151.26,0.0004899,120]
[356935400,1743441040917,-151.26,0.0004899,120]
[356935401,1743441040931,-151.26,0.0004899,120]
[356935402,1743441040941,-1460.12,0.00048993,38]
[356935403,1743441040951,-499.39920002,0.00048999,120]
[356935404,1743441040961,-984.0,0.00049,7]
[356935405,1743441040971,-180597.20099914,0.00049,7]
[356935406,1743441040983,-12733.85123549,0.00049,7]
[356935407,1743441040997,-1732.02464372,0.00049,7]
[356935408,1743441041009,-1560.84649311,0.00049,7]
[356935409,1743441041020,-1043.87316363,0.00049,7]
[356935410,1743441041032,-370.80323427,0.00049,7]
[356935411,1743441041046,-50732.7791015,0.00049,7]
[356935412,1743441041057,-299.9249473,0.00049,7]
[356935413,1743441041074,-500.0,0.00049,7]
[356935414,1743441041085,-2097.86412202,0.00049,7]
[356935415,1743441041097,-3152.51917604,0.00049,7]
[356935416,1743441041122,-281.58509351,0.00049,7]
[356935417,1743441041133,-302.2027,0.00049,7]
[356935418,1743441041144,-17976.63802709,0.00049,7]
[356935432,1743441043371,-223781.61897359,0.00049,7]
[356935433,1743441043386,-3918.15874295,0.00049,7]
[356935435,1743441043804,-276993.11325167,0.00049,7]
[356935437,1743441043816,-3996.99999943,0.00049,7]
[356935439,1743441043827,-620.0,0.00049,7]
[356935441,1743441043839,-1172.82805513,0.00049,7]
[356935442,1743441043851,-4150.0,0.00049,7]
[356935443,1743441043863,-3584.179984,0.00049,7]
[356935444,1743441043875,-2547.53,0.00049,7]
[356935445,1743441043887,-1081631.3839441,0.00049,7]
[356935446,1743441043899,-114904.0848633,0.00049,7]
[356935447,1743441043910,-2063.43824016,0.00049,7]
[356935454,1743441046379,-150.0,0.000463,2]
[356935455,1743441046393,-179.7,0.000486,7]
[356935456,1743441046403,-736.89266398,0.00049,7]
[356935457,1743441046485,-11007.18684033,0.00049,7]
[356935458,1743441046496,-483.37509479,0.00049,7]
[356935459,1743441046508,-2694.61230655,0.00049,7]
[356935519,1743441955747,20765.72975875,0.0001489,2]
[356935520,1743442031408,222.09,0.0001499,3]
[356935532,1743442231414,-270.0,0.00014999,2]
[356935534,1743442231424,-270.3519349,0.00014999,2]
[356935537,1743442231473,-29.6480651,0.00014999,2]
[356935538,1743442231482,-150.0,0.00014999,2]
[356935539,1743442231491,-150.0,0.00015,2]
[356935540,1743442231500,-412.02035995,0.00015,2]
[356935541,1743442231526,-1567.16881101,0.00015,2]
[356935542,1743442231537,-576.53974584,0.00015,2]
[356935543,1743442231583,-322.83442247,0.00015,2]
[356935544,1743442231594,-2232.82259904,0.00015,2]
[356935545,1743442231606,-632.94,0.00015,2]
[356935546,1743442231617,-262.93551264,0.00015,2]
[356935547,1743442231628,-591.8349804,0.00015,2]
[356935548,1743442231639,-2450.000002,0.00015,2]
[356935549,1743442231650,-852.93506387,0.00015,2]
[356935550,1743442231663,-2167.22097026,0.00015,2]
[356935551,1743442231674,-617.47739199,0.00015,2]
[356935552,1743442231685,-5626.51516569,0.00015,2]
[356935553,1743442231706,-1322.22029579,0.00015,2]
[356935554,1743442231719,-539.55227005,0.00015,2]
[356935576,1743442237348,-1981.00440964,0.00015,2]
[356935577,1743442237359,-2199.745,0.00015,2]
[356935578,1743442237529,-2052.78549733,0.00015,2]
[356935579,1743442237542,-278.1174902,0.00015,2]
[356935580,1743442237554,-455.12410894,0.00015,2]
[356935581,1743442237568,-579.23013743,0.00015,2]
[356935582,1743442237582,-4354.99999999,0.00015,2]
[356935583,1743442237595,-286.85471901,0.00015,2]
[356935584,1743442237607,-268.25522138,0.00015,2]
[356935773,1743442239511,-2524.83504881,0.00015,2]
[356936049,1743442242533,-4826.7079238,0.00015,2]
[356936057,1743442242604,-7547.52098339,0.00015,2]
[356936165,1743442245396,-6790.23692,0.00015,2]
[356936168,1743442245409,-2132.52857956,0.00015,2]
[356936170,1743442245419,-551.08843901,0.00015,2]
[356936172,1743442245430,-89147.12979711,0.00015,2]
[356936174,1743442245506,-766.24272863,0.00015,2]
[356936175,1743442245517,-327.983998,0.00015,2]
[356936176,1743442245527,-832.4585784,0.00015,2]
[356936177,1743442245563,-20156.54161605,0.00015,2]
[356936178,1743442245580,-600.86929527,0.00015,2]
[356936179,1743442245592,-1373.1428031,0.00015,2]
[356936180,1743442245621,-360.08234564,0.00015,2]
[356936181,1743442245632,-1000.0,0.00015,2]
[356936182,1743442261962,20480.48691516,0.0001485,2]
[356936183,1743442328264,151.0,0.00033822,30]
[356936184,1743442328886,156.587,0.00033822,30]
[356936185,1743442329534,162.380719,0.00033822,30]
[356936186,1743442330178,168.3888056,0.00033822,30]
[356936187,1743442330833,174.61919141,0.00033822,30]
[356936188,1743442331500,181.08010149,0.00033822,30]
[356936189,1743442332108,187.78006525,0.00033822,30]
[356936190,1743442332748,194.72792766,0.00033822,30]
[356936191,1743442333398,201.93286099,0.00033822,30]
[356936192,1743442334016,209.40437684,0.00033822,30]
[356936193,1743442334653,217.15233878,0.00033822,30]
[356936194,1743442335262,225.18697532,0.00033822,30]
[356936195,1743442335865,233.51889341,0.00033822,30]
[356936196,1743442336490,233.51889341,0.00033822,30]
[356936198,1743442413159,-224.38854597,0.00014899,2]
[356936199,1743442457135,-216.77930722,0.00014899,2]
[356936200,1743442493130,216.779307,0.00014824,2]
[356936201,1743442628875,274.0170456,0.00014836,2]
[356936202,1743442629324,250.79929152,0.0003381,30]
[356936203,1743442672444,-263.204198,0.000149,2]
[356936204,1743442691691,263.204198,0.00014825,2]
[356936205,1743442710672,407.589,0.000147,2]
[356936206,1743442710759,188.703,0.000147,2]
[356936207,1743442818250,200.0,0.000148,5]
[356936208,1743442820357,500.0,0.000149,5]
[356936209,1743442983162,-150.0,0.00014899,2]
[356936210,1743443091676,154.97487,0.0002325,30]
[356936211,1743443102551,-152.91151117,0.00014899,2]
[356936212,1743443105416,-147.08848883,0.00014899,2]
[356936213,1743443105443,-3.85078412,0.00014899,2]
[356936214,1743443165299,-146.14921588,0.00014899,2]
[356936215,1743443165327,-3.85078412,0.000149,2]
[356936216,1743443222087,-184.39,0.00014899,2]
[356936217,1743443235570,-115.61,0.00014899,2]
[356936218,1743443235593,-52.87,0.000149,2]
[356936220,1743443319856,-150.0,0.00014899,2]
[356936221,1743443319882,-108.39112984,0.000149,2]
[356936222,1743443319920,-4603.14850465,0.000149,2]
[356936223,1743443319945,-1000.0,0.000149,2]
[356936224,1743443319971,-3306.1806,0.000149,2]
[356936225,1743443319996,-379.6292,0.000149,2]
[356936226,1743443320026,-1228.0869,0.000149,2]
[356936227,1743443320205,-329.78516974,0.000149,2]
[356936228,1743443320231,-150.0,0.00014909,2]
[356936229,1743443320256,-500.0,0.00014973,2]
[356936230,1743443320281,-504.18759803,0.00014973,2]
[356936231,1743443320306,-500.0,0.00014973,2]
[356936232,1743443320331,-46539.62435052,0.0001499,2]
[356936233,1743443320358,-1152574.73158041,0.00015,2]
[356936234,1743443320385,-247396.34400899,0.00015,2]
[356936235,1743443326393,-59299.03345278,0.00015,2]
[356936237,1743443359109,-600.9902,0.000149,2]
[356936238,1743443359132,-255.0,0.00016031,2]
[356936239,1743443359157,-150.0,0.00016389,2]
[356936240,1743443359180,-150.0,0.0001639,2]
[356936241,1743443359202,-504.35525356,0.00017114,2]
[356936242,1743443359224,-994.43,0.00017114,2]
[356936243,1743443359246,-433.0,0.00017253,2]
[356936244,1743443359267,-736.0,0.00018564,2]
[356936245,1743443359289,-256.62845641,0.00019,2]
[356936246,1743443359311,-318.86207662,0.0001931,2]
[356936255,1743443431583,-193.8824,0.000149,2]
[356936256,1743443431593,-806.1176,0.000149,2]
[356936257,1743443431639,-1693.8824,0.000149,2]
[356936258,1743443431648,-150.0,0.0001639,2]
[356936259,1743443431658,-150.0,0.00017105,2]
[356936260,1743443431667,-150.0,0.00019202,2]
[356936261,1743443431678,-10.92309312,0.0001931,2]
[356936262,1743443431687,-501.88090667,0.00020452,2]
[356936263,1743443431697,-590.06311452,0.00021345,3]
[356936264,1743443431706,-590.06311453,0.00021345,3]
[356936265,1743443431716,-184.51,0.00022855,2]
[356936266,1743443431725,-151.97,0.00023205,2]
[356936267,1743443431735,-151.97,0.00023221,2]
[356936268,1743443431745,-151.97,0.00023238,2]
[356936269,1743443431755,-151.97,0.00023255,2]
[356936270,1743443431764,-151.97,0.00023271,2]
[356936271,1743443431774,-151.97,0.00023288,2]
[356936272,1743443431783,-151.97,0.00023304,2]
[356936273,1743443431792,-151.97,0.00023321,2]
[356936274,1743443431802,-300.0,0.0002339,2]
[356936275,1743443431812,-8385.98,0.00023391,2]
[356936276,1743443431822,-329.78516974,0.00023721,2]
[356936277,1743443431831,-788.32168215,0.000249,2]
[356936278,1743443431841,-420.0,0.0002538,2]
[356936279,1743443431851,-4865.18,0.00026591,2]
[356936280,1743443431861,-150.99,0.00026591,2]
[356936281,1743443431871,-999.99,0.00026591,2]
[356936282,1743443431881,-9999.99,0.00026591,2]
[356936283,1743443431890,-152.73,0.00026849,2]
[356936284,1743443431899,-209.0,0.00027541,2]
[356936285,1743443431909,-329.78516974,0.00028131,2]
[356936286,1743443431918,-2743.38,0.00028843,2]
[356936287,1743443431928,-4986.58809329,0.0003,15]
[356936288,1743443431937,-1000.0,0.00030496,2]
[356936289,1743443431947,-200.0,0.00031274,2]
[356936290,1743443431959,-311.64,0.00031274,2]
[356936291,1743443431969,-202.48,0.00031678,120]
[356936292,1743443431979,-250.0,0.00031713,2]
[356936293,1743443431988,-23900.0,0.00032293,2]
[356936294,1743443431998,-329.78516974,0.00032542,2]
[356936295,1743443432008,-675.0,0.00032832,5]
[356936296,1743443432018,-155.94,0.00032932,120]
[356936297,1743443432027,-3025.45752568,0.0003349,2]
[356936298,1743443432034,-184.51,0.00034282,120]
[356936299,1743443432042,-1000.0,0.00034308,2]
[356936300,1743443432049,-5636.5335991,0.00035,5]
[356936301,1743443432057,-150.0,0.00035616,2]
[356936302,1743443432063,-785.94,0.00036079,2]
[356936303,1743443432074,-165.11191396,0.00036567,2]
[356936305,1743443432083,-329.78516974,0.00036952,2]
[356936307,1743443432094,-987.733702,0.0003812,2]
[356936309,1743443432106,-12.266298,0.0003812,2]
[356936311,1743443432117,-496.12120201,0.00038343,2]
[356936316,1743443432160,-289.81879799,0.00038343,2]
[356936319,1743443432170,-407.59,0.00038525,52]
[356936322,1743443432179,-177.69051161,0.00039628,2]
[356936326,1743443432192,-622.69948839,0.00039628,2]
[356936329,1743443432202,-253.2,0.00039628,2]
[356936331,1743443432212,-174.7,0.00039765,2]
[356936333,1743443432222,-888.31,0.00039765,2]
[356936335,1743443432231,-151.62,0.00039765,2]
[356936337,1743443432241,-156.56,0.00040587,2]
[356936339,1743443432250,-785.94,0.00040607,2]
[356936341,1743443432260,-329.78516974,0.00041363,15]
[356936342,1743443432269,-1000.0,0.00041932,2]
[356936344,1743443432278,-151.0,0.0004199,14]
[356936345,1743443432288,-232.522207,0.0004199,14]
[356936346,1743443432299,-151.27,0.0004199,2]
[356936347,1743443432309,-33669.45321853,0.00042,7]
[356936348,1743443432321,-11486.36937046,0.00042,7]
[356936349,1743443432340,-72379.37887554,0.00042,7]
[356936350,1743443432351,-6625.31777006,0.00042,7]
[356936351,1743443432370,-1800.0,0.00042,7]
[356936352,1743443432383,-339.13879991,0.00042,7]
[356936353,1743443432396,-384.38921931,0.00042,7]
[356936354,1743443432408,-826.65241,0.00042,7]
[356936370,1743443437636,-17489.30033619,0.00042,7]
[356936371,1743443437647,-145175.9743014,0.00042,2]
[356936372,1743443437667,-1231.595,0.00042,2]
[356936373,1743443437715,-289.56478602,0.00042,2]
[356936374,1743443437727,-757.07913294,0.00042,2]
[356936375,1743443437739,-20574.70783496,0.00042,2]
[356936376,1743443437770,-301.02210313,0.00042,2]
[356936496,1743443439045,-150.81126082,0.00042,14]
[356936566,1743443439695,-414.06365,0.00042,2]
[356936595,1743443439959,-479.45831315,0.00042,2]
[356936597,1743443439969,-41388.5,0.00042,2]
[356936606,1743443440047,-8110.05322292,0.00042,2]
[356936734,1743443441907,-158.8258547,0.00042,2]
[356936792,1743443442779,-23306.34617122,0.00042,2]
[356936825,1743443443494,-1351.1,0.00042,2]
[356936851,1743443445581,-6280.37335598,0.00042,2]
[356936853,1743443445593,-1647.345,0.00042,2]
[356936855,1743443446979,-29391.89862873,0.00042,2]
[356936856,1743443446990,-367.00079541,0.00042,2]
[356936857,1743443447002,-82000.0,0.00042,2]
[356936858,1743443447035,-457.08179998,0.00042,2]
[356936859,1743443447048,-520.95000108,0.00042,2]
[356936860,1743443447091,-829.7,0.00042,2]
[356936988,1743444632030,-250.0,0.00025,2]
[356936989,1743444632040,-288.52644056,0.00026849,2]
[356936990,1743444632135,-33.99197902,0.00026849,2]
[356936991,1743444632146,-150.0,0.00026849,2]
[356936992,1743444632157,-154.73,0.00026849,2]
[356936993,1743444632167,-300.0,0.00027,2]
[356936994,1743444632178,-350.0,0.00029,2]
[356936995,1743444632187,-150.0,0.00029534,2]
[356936996,1743444632198,-400.0,0.00031,2]
[356936997,1743444632207,-150.0,0.0003198,2]
[356936998,1743444632217,-2720.89861279,0.000343,5]
[356936999,1743444632233,-1195.94563405,0.000343,5]
[356937000,1743444632244,-280.05187504,0.000343,5]
[356937001,1743444632260,-431.45755592,0.000343,5]
[356937002,1743444632272,-924.6463222,0.000343,5]
[356937003,1743444632282,-153.0,0.00035,120]
[356937004,1743444632291,-2380.86,0.00035,2]
[356937005,1743444632300,-904.92,0.00038845,2]
[356937007,1743444632310,-154.73,0.00039087,2]
[356937009,1743444632319,-500.0,0.00039205,2]
[356937011,1743444632328,-23900.0,0.00040707,2]
[356937013,1743444632339,-2512.64,0.00040801,2]
[356937015,1743444632349,-200.0,0.00041068,2]
[356937017,1743444632359,-904.92,0.00041109,2]
[356937019,1743444632367,-151.33,0.00041169,2]
[356937021,1743444632377,-222.54228004,0.0004158,2]
[356937022,1743444632388,-1000.0,0.00041752,2]
[356937023,1743444632397,-162.18,0.00041844,120]
[356937024,1743444632408,-725.02246974,0.000419,7]
[356937025,1743444632417,-153.0,0.000419,120]
[356937026,1743444632427,-441.63339426,0.00041915,15]
[356937027,1743444632437,-151.0,0.00041975,2]
[356937028,1743444632446,-150.0,0.0004199,2]
[356937029,1743444632455,-412.0,0.0004199,4]
[356937031,1743444632465,-1000.0,0.00041999,4]
[356937032,1743444632475,-706.377,0.00041999,63]
[356937033,1743444632485,-158.003,0.00041999,63]
[356937034,1743444632495,-623.71764709,0.00042,2]
[356937035,1743444632507,-24161.10671194,0.00042,2]
[356937036,1743444632519,-5588.4964544,0.00042,2]
[356937037,1743444632534,-5212.84645226,0.00042,2]
[356937057,1743444637865,-512.47249055,0.00042,2]
[356937065,1743444640209,-1057.50924714,0.00042,2]
[356937088,1743444643002,-20714.4110648,0.00042,2]
[356937090,1743444643013,-21643.46396136,0.00042,2]
[356937096,1743444643321,-55453.33601884,0.00042,2]
[356937097,1743444643331,-337.1575546,0.00042014,2]
[356937098,1743444643341,-155.94,0.00042224,120]
[356937099,1743444643351,-150.0,0.00042277,2]
[356937101,1743444643512,-2120.80254661,0.00042277,2]
[356937102,1743444643524,-250.0,0.00043097,2]
[356937103,1743444643535,-150.33,0.00043301,2]
[356937104,1743444643545,-156.587,0.00043344,2]
[356937105,1743444643555,-904.92,0.00043373,2]
[356937106,1743444643564,-441.63339424,0.00043469,15]
[356937107,1743444643575,-1544.494,0.00043636,2]
[356937108,1743444643584,-1215.668,0.00043736,2]
[356937109,1743444643593,-725.02246975,0.00043736,7]
[356937110,1743444643603,-184.19,0.00043736,2]
[356937111,1743444643615,-540.0,0.00043836,60]
[356937112,1743444643626,-1363.8448367,0.00043836,120]
[356937113,1743444643635,-1363.8448367,0.00043836,120]
[356937114,1743444643644,-1363.8448367,0.00043836,120]
[356937115,1743444643654,-1363.8448367,0.00043836,120]
[356937116,1743444643664,-1363.8448367,0.00043836,120]
[356937117,1743444643673,-1363.8448367,0.00043836,120]
[356937118,1743444643682,-1363.8448367,0.00043836,120]
[356937119,1743444643692,-1363.8448367,0.00043836,120]
[356937120,1743444643702,-1363.8448367,0.00043836,120]
[356937121,1743444643712,-1363.8448367,0.00043836,120]
[356937122,1743444643722,-1363.8448367,0.00043836,120]
[356937123,1743444643732,-1363.8448367,0.00043836,120]
[356937124,1743444643743,-1363.8448367,0.00043836,120]
[356937125,1743444643752,-1363.8448367,0.00043836,120]
[356937126,1743444643762,-1363.8448367,0.00043836,120]
[356937127,1743444643773,-1363.8448367,0.00043836,120]
[356937128,1743444643783,-1363.8448367,0.00043836,120]
[356937129,1743444643793,-1363.8448367,0.00043836,120]
[356937130,1743444643802,-1363.8448367,0.00043836,120]
[356937131,1743444643811,-1363.8448367,0.00043836,120]
[356937132,1743444643820,-1363.8448367,0.00043836,120]
[356937133,1743444643830,-1363.8448367,0.00043836,120]
[356937134,1743444643840,-1363.8448367,0.00043836,120]
[356937135,1743444643850,-1363.8448367,0.00043836,120]
[356937136,1743444643863,-1363.8448367,0.00043836,120]
[356937137,1743444643872,-1363.8448367,0.00043836,120]
[356937138,1743444643881,-1363.8448367,0.00043836,120]
[356937139,1743444643891,-1363.8448367,0.00043836,120]
[356937140,1743444643900,-1363.8448367,0.00043836,120]
[356937141,1743444643909,-1363.8448367,0.00043836,120]
[356937142,1743444643918,-1363.8448367,0.00043836,120]
[356937143,1743444643928,-1363.8448367,0.00043836,120]
[356937144,1743444643938,-1363.8448367,0.00043836,120]
[356937145,1743444643947,-1363.8448367,0.00043836,120]
[356937146,1743444643957,-1363.8448367,0.00043836,120]
[356937147,1743444643966,-1363.8448367,0.00043836,120]
[356937148,1743444643975,-1363.8448367,0.00043836,120]
[356937149,1743444643984,-1363.8448367,0.00043836,120]
[356937150,1743444643994,-952.00610949,0.00043836,120]
[356937151,1743444644006,-324.5543214,0.00043836,120]
[356937152,1743444644103,-87.28440581,0.00043836,120]
[356937153,1743444644113,-2.51927669,0.00043836,120]
[356937154,1743444644284,-1361.32556001,0.00043836,120]
[356937155,1743444644293,-1363.8448367,0.00043836,120]
[356937156,1743444644303,-1363.8448367,0.00043836,120]
[356937157,1743444644313,-1363.8448367,0.00043836,120]
[356937158,1743444644323,-1363.8448367,0.00043836,120]
[356937159,1743444644332,-1363.8448367,0.00043836,120]
[356937160,1743444644342,-1363.8448367,0.00043836,120]
[356937161,1743444644352,-1363.8448367,0.00043836,120]
[356937162,1743444644362,-1363.8448367,0.00043836,120]
[356937163,1743444644372,-1363.8448367,0.00043836,120]
[356937164,1743444644382,-1363.8448367,0.00043836,120]
[356937165,1743444644391,-1363.8448367,0.00043836,120]
[356937166,1743444644401,-1363.8448367,0.00043836,120]
[356937167,1743444644411,-1363.8448367,0.00043836,120]